Cogmind - Beta 17 @@@ ROGUE MODE // 2026.08.22 @ 10:12:36 Player: MolePlayingNice Result: Self-destructed Performance ------------- Evolutions (4) 2000 Regions Visited (9) 1800 Robots Destroyed (84) 420 Value Destroyed (2689) 2689 Prototype IDs (34) 680 Alien Tech Used (0) 0 Bonus (8919) 8919 TOTAL SCORE: 16508 Bonus ------- Follower Combat Kills 269 Prayed to X0-1V1 5000 Major X0-1V1 Interference 3350 Met Data Miner 300 Cogmind --------- Core Integrity 875/875 Matter 717/900 Energy 1780/1780 System Corruption 0% Temperature Cool (0) Movement Rolling (98) Ox1 Location -6/Factory Parts ------- > --- POWER (2) -------- Cooled Deuterium Engine (fused) Light Antimatter Reactor (fused) > --- PROPULSION (4) --- Armored Leg Wheel (fused) Compact Wheel Armored Wheel (fused) > --- UTILITY (6) ------ Large Storage Unit Weapon Cycler (fused) Experimental ECM Suite (fused) Improved Hardlight Generator (fused) Self-contained Transmogrifier X0-1V1's Piety Tracker > --- WEAPON (3) ------- Heavy Particle Cannon (fused) Cooled Plasma Cannon (fused) KE Penetrator (fused) > --- INVENTORY (15) --- Coolant Injector Seismic Detector Advanced Targeting Computer Improved Light Armor Plating Improved Light Armor Plating Hacking Suite Improved Hacking Suite Authchip [Device] Plasma Rifle Proton Cannon Phase Cannon Magnetic Acceleration Cannon Antimatter Cannon Improved Proton Missile Launcher Heavy Rocket Launcher Peak State ------------ > --- POWER ------------ Cooled Deuterium Engine Light Antimatter Reactor > --- PROPULSION ------- Armored Leg Wheel Compact Wheel Armored Wheel > --- UTILITY ---------- Large Storage Unit Energy Well Experimental ECM Suite Improved Hardlight Generator Self-contained Transmogrifier X0-1V1's Piety Tracker > --- WEAPON ----------- Heavy Particle Cannon Cooled Plasma Cannon KE Penetrator > --- INVENTORY -------- Coolant Injector Seismic Detector Advanced Targeting Computer Improved Light Armor Plating Improved Light Armor Plating Hacking Suite Improved Hacking Suite Authchip [Device] Plasma Rifle Proton Cannon Heavy Battle Rifle Magnetic Acceleration Cannon Antimatter Cannon Improved Proton Missile Launcher Heavy Rocket Launcher [Rating: 83] Favorites ----------- Power Improved Deuterium Engine Engine Improved Deuterium Engine Power Core Neutrino Core Reactor Light Antimatter Reactor Propulsion Light Treads Treads Light Treads Leg Aluminum Leg Wheel Armored Wheel Hover Unit Improved Hover Unit Flight Unit Flight Unit Utility Large Storage Unit Device X0-1V1's Piety Tracker Storage Large Storage Unit Processor Experimental Salvage Targeting Computer Hackware Hacking Suite Protection Improved Light Armor Plating Weapon Medium Laser Energy Gun Medium Laser Energy Cannon Advanced Beam Cannon Ballistic Gun Subdweller Machine Gun Ballistic Cannon Light Cannon Launcher Heavy Rocket Launcher Special Weapon Mining Laser Slashing Weapon Blade Saw Piercing Weapon Spear Build | -11 -10 -10 -8 -7 -7 -7 -7 -6 -6 ------- Run | Yrd Mat Sub Mat Fac Low Low Dat Pro Fac Slots Evolved 8 | . . . 4 2 . . . . 2 Power . | . . . . . . . . . . Propulsion 3 | . . . 2 . . . . . 1 Utility 4 | . . . 2 2 . . . . . Weapon 1 | . . . . . . . . . 1 Parts Attached 77 | 1 9 15 23 13 8 2 . 2 4 Power 10 | . . 1 5 2 1 . . 1 . Engine 7 | . . 1 4 2 . . . . . Core 3 | . . . 1 . 1 . . 1 . Reactor . | . . . . . . . . . . Propulsion 20 | . 2 3 8 2 3 . . . 2 Treads 11 | . 2 1 5 2 1 . . . . Leg 4 | . . . 1 . 2 . . . 1 Wheel 5 | . . 2 2 . . . . . 1 Hover . | . . . . . . . . . . Flight . | . . . . . . . . . . Utility 18 | . 3 3 1 7 2 1 . 1 . Device 8 | . 1 3 1 2 1 . . . . Storage 1 | . 1 . . . . . . . . Processor 1 | . 1 . . . . . . . . Hackware 2 | . . . . 2 . . . . . Protection 6 | . . . . 3 1 1 . 1 . Artifact . | . . . . . . . . . . Weapon 29 | 1 4 8 9 2 2 1 . . 2 Energy Gun 9 | 1 1 1 2 1 1 . . . 2 Energy Cannon 4 | . . 1 2 . . 1 . . . Ballistic Gun 6 | . . 2 3 1 . . . . . Ballistic Cannon 6 | . . 4 2 . . . . . . Launcher 3 | . 2 . . . 1 . . . . Special Weapon 1 | . 1 . . . . . . . . Impact Weapon . | . . . . . . . . . . Slashing Weapon . | . . . . . . . . . . Piercing Weapon . | . . . . . . . . . . Special Melee Weapon . | . . . . . . . . . . Unidentified Prototypes 4 | . 1 . 3 . . . . . . Parts Lost 17 | . . 11 6 . . . . . . Power 2 | . . 1 1 . . . . . . Propulsion 5 | . . 3 2 . . . . . . Utility 1 | . . 1 . . . . . . . Weapon 9 | . . 6 3 . . . . . . Highest Loss Streak 6 | . . 6 2 . . . . . . To Critical Strikes 1 | . . 1 . . . . . . . Average Backups 12 | 6 11 12 13 13 13 11 12 12 13 Power . | 1 1 . . . . . . . . Propulsion 1 | 4 3 1 . 1 2 1 1 1 . Utility 5 | . 2 6 7 6 5 4 5 5 6 Weapon 5 | 1 4 4 5 5 5 5 5 5 5 Tool/Special . | . . . . . . . . . . Unused Backups 38 | . 7 2 11 1 4 . . . 13 Power . | . . . . . . . . . . Propulsion 7 | . 6 . . . . . . . 1 Utility 16 | . 1 2 7 1 . . . . 5 Weapon 14 | . . . 4 . 4 . . . 6 Tool/Special 1 | . . . . . . . . . 1 Average Slot Usage (%) 96 | . 98 91 95 99 97 94 100 100 95 Engine 10 | . 14 7 12 10 12 15 15 10 1 Core 1 | . . . 1 4 2 . . 4 9 Treads 13 | . 19 12 18 19 17 . . . . Leg 2 | . 8 . 1 . 1 5 . . 1 Wheel 7 | . . 13 4 3 1 11 23 23 21 Device 18 | . . 13 20 22 24 28 30 30 26 Storage 10 | . 14 14 9 7 6 7 7 9 13 Processor 2 | . 12 . . . 4 3 . . . Protection 2 | . . . . 7 2 5 7 5 . Energy Gun 11 | . 27 5 9 8 19 7 7 4 6 Energy Cannon 3 | . . 2 3 6 . 5 7 6 9 Ballistic Gun 3 | . . 8 7 6 . . . 2 2 Ballistic Cannon 3 | . . 13 6 . . . . . . Peak Build Rating 83 | 6 20 24 52 62 76 73 68 72 83 Average Rating 45 | 6 7 20 43 56 68 70 68 70 77 On Entrance 44 | 6 6 20 24 51 60 70 68 68 71 Avg Prop Armor Cover (%) 10 | . . 11 14 1 16 12 . . 6 Naked Turns . | . . . . . . . . . . Heaviest Build 79 | 14 30 34 52 59 71 74 69 79 79 Greatest Support 81 | 20 40 40 76 81 78 36 36 36 48 Greatest Overweight (x) 6 | . 1 1 4 1 6 6 1 2 2 Average Overweight (x) 1 | . . . . . 1 3 1 1 1 Largest Inventory Capacity 15 | 8 15 15 15 15 15 15 15 15 15 Average Capacity 14 | 8 14 15 15 15 15 15 15 15 15 Most Carried 15 | 6 15 15 15 15 15 13 13 14 15 Average Carried 13 | 6 11 12 13 13 14 12 13 13 14 Final Capacity 15 | 8 15 15 15 15 15 15 15 15 15 Final Carried 15 | 6 15 12 15 15 13 13 13 14 15 Transmogrified Parts 52 | . . . 10 8 17 4 . 4 9 Integrity Recovered 712 | . . . 78 72 349 39 . 52 122 Class Distribution -------------------- 48% | Mutant 24% | Tank 12% | Gunner 4% | Scavenger-Skirmisher 3% | Scavenger-Tank Dominant Class ---------------- Mutant | -10/Materials Mutant | -10/Subcaves Gunner | -8/Materials Tank | -7/Factory Tank | -7/Lower Caves Mutant | -7/Lower Caves Mutant | -7/Data Miner Mutant | -6/Proximity Caves Tank | -6/Factory Resources | -11 -10 -10 -8 -7 -7 -7 -7 -6 -6 ----------- Run | Yrd Mat Sub Mat Fac Low Low Dat Pro Fac Matter Collected 3378 | 200 87 590 918 196 665 183 . 82 457 Remotely . | . . . . . . . . . . Salvage Created 2774 | . 236 316 1034 387 380 200 . 204 17 Parts 164 | . 27 23 57 20 10 14 . 12 1 Haulers Intercepted 3 | . 1 . 2 . . . . . . Recyclers Shooed 2 | . . . 2 . . . . . . Parts Field Recycled . | . . . . . . . . . . Retrieved Matter . | . . . . . . . . . . Parts Self-Destructed 53 | . . 16 . . 13 13 . 11 . Prevented 1 | . . . . . . 1 . . . Parts Restored . | . . . . . . . . . . Kills | -11 -10 -10 -8 -7 -7 -7 -7 -6 -6 ------- Run | Yrd Mat Sub Mat Fac Low Low Dat Pro Fac Combat Hostiles Destroyed 64 | . 8 15 14 9 9 3 . 5 1 Guns 29 | . 1 4 8 6 6 3 . 1 . Cannons 14 | . . 6 5 2 . . . 1 . AOE 17 | . 7 5 1 . 2 . . 2 . Classes Destroyed 19 | . 7 1 5 2 3 1 . . . Worker 2 | . . . 2 . . . . . . Builder 2 | . . . 2 . . . . . . Tunneler 1 | . 1 . . . . . . . . Hauler 3 | . 1 . 2 . . . . . . Recycler 4 | . 1 . 3 . . . . . . Mechanic 2 | . 1 . 1 . . . . . . Operator 2 | . . . 2 . . . . . . Watcher 3 | . 2 . 1 . . . . . . Swarmer 21 | . 6 10 . 3 1 . . . 1 Grunt 19 | . 2 . 9 2 3 . . 3 . Brawler 1 | . . . . 1 . . . . . Duelist 1 | . . . . . 1 . . . . Sentry 6 | . . . 3 2 1 . . . . Specialist 3 | . . . . . 3 . . . . Hunter 2 | . . . 2 . . . . . . Programmer 4 | . . . . 1 . 2 . 1 . Behemoth 2 | . . . . . . 1 . 1 . Subdweller 5 | . . 5 . . . . . . . Mutant 1 | . . . . . 1 . . . . Best Kill Streak 9 | . 9 4 5 3 4 1 . 3 1 Combat Bots Only 5 | . 5 4 3 3 4 1 . 3 1 Max Kills in Single Turn 3 | . 3 3 2 1 2 1 . 2 1 Gunslinging . | . . . . . . . . . . Exploded 3 | . 3 3 1 . 1 . . 2 . Melee . | . . . . . . . . . . Uniques/NPCs Destroyed . | . . . . . . . . . . Combat | -11 -10 -10 -8 -7 -7 -7 -7 -6 -6 -------- Run | Yrd Mat Sub Mat Fac Low Low Dat Pro Fac Hostile Shots Fired 491 | . 12 183 91 74 41 37 . 52 1 Missed 147 | . 2 49 26 26 10 11 . 23 . Hits 344 | . 10 134 65 48 31 26 . 29 1 Melee 1 | . . . . 1 . . . . . Projectile 343 | . 10 134 65 47 31 26 . 29 1 Critical Strikes 9 | . . 2 3 . 3 . . 1 . Damage Taken 4284 | . 93 1558 1062 482 370 480 . 232 7 Core 726 | . 29 329 124 60 54 57 . 73 . Absorbed by Shields 373 | . . . . . 144 66 . 157 6 Regen/Repaired (Parts) 28 | . . . 28 . . . . . . Core Remaining (%) 70 | 100 . 37 78 . . . . 66 . Volleys Fired 216 | . 9 64 61 22 22 15 . 10 13 Largest 4 | . 2 2 3 3 4 2 . 2 3 Hottest 263 | . 100 113 164 211 263 145 . 105 233 Shots Fired 456 | . 12 106 168 56 53 28 . 14 19 Gun 255 | . 6 51 94 34 47 13 . 4 6 Cannon 182 | . . 52 74 22 . 14 . 7 13 Launcher 19 | . 6 3 . . 6 1 . 3 . Special . | . . . . . . . . . . Kinetic 187 | . . 67 108 12 . . . . . Thermal 242 | . 6 35 53 44 47 27 . 11 19 Explosive 19 | . 6 3 . . 6 1 . 3 . Electromagnetic 8 | . . 1 7 . . . . . . Robot Hit Streak 24 | . 5 11 20 9 24 14 . 8 9 Robot Miss Streak 5 | . 3 4 5 2 2 2 . 1 2 Penetration Max 1 | . . . 1 . . . . . . Secondary Targets 1 | . . . 1 . . . . . . Max Gunslinging Chain 1 | . . . 1 . . . . . . Shots Hit Robots 263 | . 5 50 101 38 33 19 . 11 6 Core Hits 143 | . 18 20 48 20 19 8 . 9 1 Critical Kills 3 | . . 1 1 . . . . 1 . Critical Parts Destroyed . | . . . . . . . . . . Critical Strikes 11 | . . 1 5 1 2 . . 1 1 Burn 7 | . . . 3 1 2 . . . 1 Meltdown 1 | . . . . . . . . 1 . Destroy 2 | . . 1 1 . . . . . . Blast 1 | . . . 1 . . . . . . Melee Attacks . | . . . . . . . . . . Impact . | . . . . . . . . . . Slashing . | . . . . . . . . . . Piercing . | . . . . . . . . . . Sneak Attacks . | . . . . . . . . . . Combat Hostiles . | . . . . . . . . . . Follow-up Attacks . | . . . . . . . . . . Damage Inflicted 7515 | . 673 1235 1879 726 1423 634 . 826 119 Guns 2706 | . 37 344 958 409 481 312 . 78 87 Cannons 2242 | . . 579 823 317 . 312 . 179 32 Explosions 2555 | . 636 312 86 . 942 10 . 569 . Melee . | . . . . . . . . . . Ramming 12 | . . . 12 . . . . . . Kinetic 1834 | . . 544 1204 86 . . . . . Thermal 3161 | . 37 379 624 640 481 624 . 257 119 Explosive 2469 | . 636 312 . . 942 10 . 569 . Electromagnetic 39 | . . . 39 . . . . . . Impact . | . . . . . . . . . . Slashing . | . . . . . . . . . . Piercing . | . . . . . . . . . . Highest Corruption . | . . . . . . . . . . Average Corruption . | . . . . . . . . . . Corruption Purged . | . . . . . . . . . . Corruption Blocked . | . . . . . . . . . . Overload Shots 5 | . . . . . . 5 . . . Effects 2 | . . . . . . 2 . . . Energy Bleed 1 | . . . . . . 1 . . . Heat Surge 1 | . . . . . . 1 . . . Overflow Damage 149 | . 6 35 11 . . . . 97 . Projectiles 30 | . . . 11 . . . . 19 . Explosions 119 | . 6 35 . . . . . 78 . Melee . | . . . . . . . . . . Knockbacks 8 | . . 1 7 . . . . . . Impact . | . . . . . . . . . . Kinetic 8 | . . 1 7 . . . . . . Secondary . | . . . . . . . . . . Self-Inflicted Damage 95 | . 15 23 41 . . . . 16 . Shots 4 | . 1 1 1 . . . . 1 . Rammed 3 | . . . 3 . . . . . . Targets Rammed 3 | . . . 3 . . . . . . Kicked . | . . . . . . . . . . Crushed . | . . . . . . . . . . Highest Temperature 390 | . 39 2 326 354 390 348 . 84 297 Average Temperature 100 | . 19 2 83 93 163 156 . 26 156 Received Heat Transfer 1309 | . . 330 594 86 180 40 . 79 . Effects 7 | . . . 3 . 2 2 . . . Shutdowns 2 | . . . . . 1 1 . . . Energy Bleed 1 | . . . . . . 1 . . . Interference 4 | . . . 3 . 1 . . . . Siege Activations . | . . . . . . . . . . Martial Activations . | . . . . . . . . . . Shielding Activations . | . . . . . . . . . . Robots Disrupted . | . . . . . . . . . . Combat Hostiles . | . . . . . . . . . . Robots Corrupted . | . . . . . . . . . . Combat Hostiles . | . . . . . . . . . . Parts Fried . | . . . . . . . . . . Impact Corruptions . | . . . . . . . . . . Robots Melted 4 | . . . . 1 1 . . 1 1 Combat Hostiles 4 | . . . . 1 1 . . 1 1 Parts Melted 18 | . . 1 2 3 6 4 . 2 . Heat Transferred 6502 | . 111 814 1530 1323 1275 768 . 333 348 Parts Sabotaged . | . . . . . . . . . . Parts Stolen . | . . . . . . . . . . Parts Stripped . | . . . . . . . . . . Power Chain Reactions 1 | . . . 1 . . . . . . Alert | -11 -10 -10 -8 -7 -7 -7 -7 -6 -6 ------- Run | Yrd Mat Sub Mat Fac Low Low Dat Pro Fac Maximum Alert Level 1 | . . . 1 . . . . . . Low Security (%) 75 | 100 100 . 30 100 . . . . 100 Level 1 24 | . . . 69 . . . . . . Level 2 . | . . . . . . . . . . Level 3 . | . . . . . . . . . . Level 4 . | . . . . . . . . . . Level 5 . | . . . . . . . . . . High Security . | . . . . . . . . . . Max Security . | . . . . . . . . . . Peak Influence 347 | . 188 . 347 193 . . . . 46 Initial 55 | . . . . 55 . . . . . Average 121 | . 60 . 216 109 . . . . 7 Influence Increases 2167 | . 238 272 745 407 177 90 . 135 103 Destroy 0b10 Robot/C 1260 | . 160 200 380 180 160 60 . 100 20 Destroy 0b10 Robot/NC 105 | . 30 . 75 . . . . . . Destroy Leader 232 | . 26 10 96 40 . 30 . 20 10 Allied During Kill 15 | . . 2 11 . 2 . . . . Successful Hack 50 | . . . 3 26 . . . . 21 Disable Machine 90 | . . . 90 . . . . . . Destroy Structure 46 | . 22 . 15 2 . . . . 7 Lose Combat Pursuer 225 | . . 60 75 15 15 . . 15 45 Miscellaneous 144 | . . . . 144 . . . . . Influence Decreases 2167 | . 238 272 622 397 310 90 . 135 103 Entered New Map 118 | . . . . 68 50 . . . . Time Decay 1727 | . 238 182 422 329 260 90 . 135 71 Lost Part 110 | . . 60 50 . . . . . . Lost Ally 31 | . . 30 . . . . . . 1 Purge Threat 181 | . . . 150 . . . . . 31 Squads Dispatched 6 | . 1 . 2 1 . . . . 2 Investigation 1 | . . . . . . . . . 1 Extermination 2 | . . . . 1 . . . . 1 Reinforcement 3 | . 1 . 2 . . . . . . Assault . | . . . . . . . . . . Garrison . | . . . . . . . . . . Intercept . | . . . . . . . . . . Searches Triggered . | . . . . . . . . . . Construction Impeded . | . . . . . . . . . . Haulers Reinforced . | . . . . . . . . . . Active Scanning Responses . | . . . . . . . . . . Cargo Convoy Interrupts . | . . . . . . . . . . Stealth | -11 -10 -10 -8 -7 -7 -7 -7 -6 -6 --------- Run | Yrd Mat Sub Mat Fac Low Low Dat Pro Fac Distress Signals 4 | . 2 . 2 . . . . . . Communications Jammed . | . . . . . . . . . . Distress Signals . | . . . . . . . . . . Times Spotted 96 | . 13 21 30 10 10 3 . 7 2 Peak Tracking Total 6 | . 6 6 5 3 5 1 . 5 2 Tactical Retreats 9 | . . 2 2 1 1 . . 1 2 Traps | -11 -10 -10 -8 -7 -7 -7 -7 -6 -6 ------- Run | Yrd Mat Sub Mat Fac Low Low Dat Pro Fac Traps Triggered . | . . . . . . . . . . Indirectly . | . . . . . . . . . . Trap Hack Attempts . | . . . . . . . . . . Triggered . | . . . . . . . . . . Disarmed . | . . . . . . . . . . Reprogrammed . | . . . . . . . . . . Reused . | . . . . . . . . . . Traps Extracted . | . . . . . . . . . . Installed . | . . . . . . . . . . Triggered . | . . . . . . . . . . Machines | -11 -10 -10 -8 -7 -7 -7 -7 -6 -6 ---------- Run | Yrd Mat Sub Mat Fac Low Low Dat Pro Fac Machines Disabled 10 | . . 3 6 . 1 . . . . Max in Single Turn 2 | . . 2 1 . 1 . . . . Garrison Access 1 | . . . . 1 . . . . . Machines Repaired . | . . . . . . . . . . Machines Dismantled . | . . . . . . . . . . Machines Sabotaged . | . . . . . . . . . . Overloaded Fab Kills . | . . . . . . . . . . Hacking | -11 -10 -10 -8 -7 -7 -7 -7 -6 -6 --------- Run | Yrd Mat Sub Mat Fac Low Low Dat Pro Fac Machines Accessed 14 | . . 1 2 3 1 . 3 . 4 Terminals 5 | . . . 1 2 . . . . 2 Fabricators 1 | . . . . . . . . . 1 Repair Stations 1 | . . . 1 . . . . . . Recycling Units . | . . . . . . . . . . Scanalyzers 1 | . . . . . . . . . 1 Garrison Access 1 | . . . . 1 . . . . . Total Hacks 69 | . . 9 5 6 1 . 25 . 23 Successful 59 | . . 9 3 3 1 . 25 . 18 Failed 9 | . . . 2 3 . . . . 4 Catastrophic . | . . . . . . . . . . Database Lockouts 1 | . . . . . . . . . 1 Manual 6 | . 1 . 2 . . . . . 3 Terminals 11 | . . . 2 4 . . . . 5 Fabricators 4 | . . . . . . . . . 4 Repair Stations 3 | . . . 3 . . . . . . Recycling Units . | . . . . . . . . . . Scanalyzers 14 | . . . . . . . . . 14 Garrison Access 2 | . . . . 2 . . . . . Terminal Hacks 41 | . . 9 1 2 1 . 25 . 3 Record 14 | . . 8 . . . . 6 . . Part Schematic 12 | . . . . . . . 12 . . Robot Schematic 4 | . . . . . . . 4 . . Robot Analysis 1 | . . . . 1 . . . . . Prototype ID Bank 3 | . . . . . . . 3 . . Open Door 1 | . . . . . 1 . . . . Level Access Points 1 | . . . . . . . . . 1 Branch Access Points 2 | . . . . 1 . . . . 1 Unreport Threat 2 | . . . 1 . . . . . 1 Proto ID Catalog 1 | . . 1 . . . . . . . Fabricator Hacks 2 | . . . . . . . . . 2 Load Schematic 1 | . . . . . . . . . 1 Build 1 | . . . . . . . . . 1 Repair Station Hacks 2 | . . . 2 . . . . . . Scan Component 1 | . . . 1 . . . . . . Repair 1 | . . . 1 . . . . . . Recycling Unit Hacks . | . . . . . . . . . . Scanalyzer 12 | . . . . . . . . . 12 Insert Component 4 | . . . . . . . . . 4 Analyze 5 | . . . . . . . . . 5 Retrieve Study 3 | . . . . . . . . . 3 Garrison Access Hacks 1 | . . . . 1 . . . . . Seal Access 1 | . . . . 1 . . . . . Unauthorized Hacks 1 | . . . . . . . . . 1 Terminals . | . . . . . . . . . . Fabricators 1 | . . . . . . . . . 1 Recompile 1 | . . . . . . . . . 1 Repair Stations . | . . . . . . . . . . Recycling Units . | . . . . . . . . . . Scanalyzers . | . . . . . . . . . . Garrison Access . | . . . . . . . . . . Data Cores Recovered 2 | . . . 2 . . . . . . Used . | . . . . . . . . . . Hacking Detections 7 | . . . 2 2 . . . . 3 Full Trace Events . | . . . . . . . . . . Feedback Events . | . . . . . . . . . . Feedback Blocked . | . . . . . . . . . . Robot Schematics Acquired 4 | . . . . . . . 4 . . Robots Built . | . . . . . . . . . . Authchips . | . . . . . . . . . . Time . | . . . . . . . . . . Total Robot Build Rating . | . . . . . . . . . . Part Schematics Acquired 16 | . . . . . . . 12 . 4 Parts Built . | . . . . . . . . . . Authchips . | . . . . . . . . . . Time 117 | . . . . . . . . . 117 Total Part Build Rating . | . . . . . . . . . . Part Studies Acquired 3 | . . . . . . . . . 3 Parts Repaired 1 | . . . 1 . . . . . . Time 32 | . . . 32 . . . . . . Parts Recycled . | . . . . . . . . . . Recycled Matter . | . . . . . . . . . . Retrieved Matter . | . . . . . . . . . . Retrieved Components . | . . . . . . . . . . Parts Scanalyzed 4 | . . . . . . . . . 4 Part Schematics Acquired 4 | . . . . . . . . . 4 Parts Damaged . | . . . . . . . . . . Bothacking | -11 -10 -10 -8 -7 -7 -7 -7 -6 -6 ------------ Run | Yrd Mat Sub Mat Fac Low Low Dat Pro Fac Used RIF Installer . | . . . . . . . . . . Robots Hacked . | . . . . . . . . . . Non-combat . | . . . . . . . . . . Combat . | . . . . . . . . . . Robot Hacks Applied . | . . . . . . . . . . Relay Couplers Released . | . . . . . . . . . . Fabnet Peak Effective % . | . . . . . . . . . . Robots Rewired 1 | . . . . . 1 . . . . Allies Hacked . | . . . . . . . . . . Hacks Repelled . | . . . . . . . . . . Allies | -11 -10 -10 -8 -7 -7 -7 -7 -6 -6 -------- Run | Yrd Mat Sub Mat Fac Low Low Dat Pro Fac Total Allies 8 | . . 2 1 . 1 . . . 4 Largest Group 4 | . . 2 1 . 1 . . . 4 Highest-Rated Group 120 | . . 16 85 . 30 . . . 120 Highest-Rated Ally 85 | . . 8 85 . 30 . . . 30 Total Orders . | . . . . . . . . . . Ally Attacks 48 | . . 19 20 . 2 . . . 7 Total Damage 1257 | . . 189 865 . 82 . . . 121 Kills 10 | . . 3 7 . . . . . . Allies Corrupted . | . . . . . . . . . . Allies Melted . | . . . . . . . . . . X0-1V1 Amusement Gains 101 | . 13 15 12 11 22 5 . 5 18 Good Acts 32 | . . 8 2 3 5 6 . 3 5 Bad Acts 28 | . . 9 6 3 7 1 . 2 . Intel | -11 -10 -10 -8 -7 -7 -7 -7 -6 -6 ------- Run | Yrd Mat Sub Mat Fac Low Low Dat Pro Fac Active Infowar (turns) 1412 | . . 51 313 343 449 256 . . . Optics 360 | . . 47 313 . . . . . . Terrain 4 | . . 4 . . . . . . . Seismic 897 | . . . . 343 449 105 . . . ECM 151 | . . . . . . 151 . . . Robot Analysis Total 1 | . . . . 1 . . . . . Derelict Logs Recovered 3 | . . . . . 1 1 . 1 . Drone Launches . | . . . . . . . . . . Drone Recoveries . | . . . . . . . . . . Exploration | -11 -10 -10 -8 -7 -7 -7 -7 -6 -6 ------------- Run | Yrd Mat Sub Mat Fac Low Low Dat Pro Fac Turns Passed 6078 | 2 848 1124 1120 799 904 445 88 347 401 Spaces Moved 3333 | 1 318 709 545 335 476 271 84 272 322 Core . | . . . . . . . . . . Treads 1347 | . 191 182 291 335 348 . . . . Legs 128 | 1 127 . . . . . . . . Wheels 1858 | . . 527 254 . 128 271 84 272 322 Hover . | . . . . . . . . . . Flight . | . . . . . . . . . . Fastest Speed 95 | 120 120 110 107 160 155 105 105 105 95 Average Speed 143 | 120 164 127 142 194 165 146 105 115 109 Slowest Speed 244 | 120 190 240 225 240 244 180 105 120 116 Overloaded Moves . | . . . . . . . . . . Propulsion Burnouts . | . . . . . . . . . . Robots Hopped . | . . . . . . . . . . Potential Cave-ins . | . . . . . . . . . . Cave-ins Triggered . | . . . . . . . . . . Exploration Rate (%) 42 | 1 80 47 44 7 57 56 74 49 10 Regions Visited 9 Branch Regions 5 Pre-discovered Areas 3 | . . 1 . . . . 1 1 . Known Exits Taken 2 | . . . . 1 . . . 1 . Unknown Exits Taken 7 | 1 1 1 1 . 1 1 1 . . Scrap Searched 5 | . . . . . 2 2 . 1 . Spaces Dug 19 | . 8 6 . . . . . . 5 Terrain Destroyed 115 | . 26 23 . . 1 21 . 32 12 Melee . | . . . . . . . . . . Projectile 18 | . . 1 . . . 3 . 2 12 AOE 97 | . 26 22 . . 1 18 . 30 . Terrain Rammed . | . . . . . . . . . . Walls Destroyed . | . . . . . . . . . . Machines Disabled . | . . . . . . . . . . Actions | -11 -10 -10 -8 -7 -7 -7 -7 -6 -6 --------- Run | Yrd Mat Sub Mat Fac Low Low Dat Pro Fac Total 4223 | 1 630 820 765 436 555 290 83 288 355 Wait 410 | . 272 9 74 45 5 2 . . 3 Move 3324 | . 317 708 544 334 475 270 83 271 322 Hop . | . . . . . . . . . . Pick Up 79 | . 13 12 26 9 9 . . 2 8 Fast Attach 34 | . 4 4 17 4 2 . . 1 2 Attach 27 | . . 10 6 5 5 . . . 1 Detach 18 | . 3 2 5 4 2 . . 1 1 Swap 36 | 1 6 7 3 7 5 3 . 3 1 Drop 53 | . 6 4 26 6 7 . . . 4 Fire 216 | . 9 64 61 22 22 15 . 10 13 Melee . | . . . . . . . . . . Ram . | . . . . . . . . . . Kick . | . . . . . . . . . . Crush 3 | . . . 3 . . . . . . Escape Stasis . | . . . . . . . . . . Rewire 23 | . . . . . 23 . . . . Trap . | . . . . . . . . . . Miscellaneous . | . . . . . . . . . . Route ------- -11/Scrapyard -10/Materials (discovered 5 exits: [*Mat x2] / [*Min x2] / *Sub) -10/Subcaves (discovered 2 exits: *Mat / [*Rec]) -8/Materials -7/Factory (discovered 5 exits: *Fac / *Sto x2 / *Low x2) -7/Lower Caves -7/Lower Caves (discovered 2 exits: Fac / *Dat) -7/Data Miner -6/Proximity Caves -6/Factory (discovered 8 exits: Fac x4 / Low x2 / Ext x2) History --------- Turn | Location | Event 3 | -11/Scrapyard | Discovered new exit (range 0) 3 | -11/Scrapyard | Entered Materials 126 | -10/Materials | Discovered new exit (range 16) 321 | -10/Materials | Discovered new exit (range 13) 329 | -10/Materials | Build established: Mutant 415 | -10/Materials | Discovered new exit (range 12) 682 | -10/Materials | Discovered new exit (range 16) 827 | -10/Materials | Discovered new exit (range 8) 843 | -10/Materials | Prayed at D.C.S.S. Altar Unit 851 | -10/Materials | Entered Subcaves 855 | -10/Subcaves | Ambushed by Subdwellers from Twisted Machinery 906 | -10/Subcaves | Discovered new exit (range 10) 969 | -10/Subcaves | Core integrity fell below 50% 982 | -10/Subcaves | X0-1V1 sent allied G-34 Mercenary (x2) 1057 | -10/Subcaves | Heat dissipation permanently improved by X0-1V1 (+15) 1083 | -10/Subcaves | Core integrity permanently improved by X0-1V1 (+200) 1118 | -10/Subcaves | Energy capacity permanently improved by X0-1V1 (+200) 1141 | -10/Subcaves | X0-1V1 activates XOMVISION 1229 | -10/Subcaves | Discovered new exit (range 5) 1229 | -10/Subcaves | X0-1V1 sent you into danger 1276 | -10/Subcaves | Lost 6 parts (1p1n4w) 1278 | -10/Subcaves | Shifting Twisted Machinery released Sub. Beam Cannon 1280 | -10/Subcaves | Learned location of Zion (-6) 1280 | -10/Subcaves | Met a Zionite searching for "candidates" 1527 | -10/Subcaves | X0-1V1 whisked you away to safety 1578 | -10/Subcaves | X0-1V1 sent hostile S-10 Pest (x3) 1632 | -10/Subcaves | Shifting Twisted Machinery released Sub. Optics 1770 | -10/Subcaves | X0-1V1 mutated your Propulsion slot to Weapon slot 1820 | -10/Subcaves | Core integrity restored by X0-1V1 (+41) 1889 | -10/Subcaves | Visited 4L-MR0's lab 1895 | -10/Subcaves | Found Prototype Device 1900 | -10/Subcaves | Found Gun Armor 1975 | -10/Subcaves | Entered Materials 1975 | -8/Materials | Evolved 4 slots: Propulsion x2, Utility x2 1976 | -8/Materials | Identified Sfc. Transmogrifier 2058 | -8/Materials | X0-1V1 sent allied B-75 Beast (x1) 2290 | -8/Materials | X0-1V1 mutated your Utility slot to Power slot 2464 | -8/Materials | Repaired Beam Rifle 2790 | -8/Materials | X0-1V1 announced a LAN party 3025 | -8/Materials | Discovered new exit (range 16) 3095 | -8/Materials | Entered Factory 3095 | -7/Factory | Evolved 2 slots: Utility x2 3190 | -7/Factory | Discovered new exit (range 9) 3289 | -7/Factory | X0-1V1 added 0b10 threat records associated with you (minor) 3397 | -7/Factory | Build established: Tank 3403 | -7/Factory | Discovered new exit (range 13) 3482 | -7/Factory | Discovered new exit (range 8) 3656 | -7/Factory | Identified exit to Storage 3656 | -7/Factory | Identified exit to Lower Caves 3800 | -7/Factory | X0-1V1 foreshadows a heat wave 3894 | -7/Factory | Entered Lower Caves 3960 | -7/Lower Caves | Attacked by a delusional Derelict stockpiling parts 4149 | -7/Lower Caves | Attracted the attention of an 0b10 outpost 4161 | -7/Lower Caves | Attached Gun Armor, gained temporary slots: Weapon x2 4218 | -7/Lower Caves | X0-1V1 activates XOMVISION 4413 | -7/Lower Caves | X0-1V1 vaporized surrounding terrain (radius 23) 4417 | -7/Lower Caves | X0-1V1 sent hostile X-62 Marksman (x3) 4525 | -7/Lower Caves | X0-1V1 mutated your Weapon slot to Propulsion slot 4608 | -7/Lower Caves | X0-1V1 mutated your Propulsion slot to Utility slot 4759 | -7/Lower Caves | Encountered a Warlord checkpoint 4782 | -7/Lower Caves | Learned Factory trap positions 4785 | -7/Lower Caves | Discovered new exit (range 9) 4798 | -7/Lower Caves | Entered another Lower Caves area 4811 | -7/Lower Caves | Build established: Mutant 4902 | -7/Lower Caves | Spotted B-75 Beast 4925 | -7/Lower Caves | Destroyed B-75 Beast 5004 | -7/Lower Caves | X0-1V1 activates XOMVISION 5220 | -7/Lower Caves | Identified exit to Factory 5220 | -7/Lower Caves | X0-1V1 revealed exit location to -6/Factory 5221 | -7/Lower Caves | Discovered new exit (range 16) 5243 | -7/Lower Caves | Entered Data Miner 5243 | -7/Data Miner | Discovered new exit (range 6) 5257 | -7/Data Miner | Met Data Miner 5289 | -7/Data Miner | Learned location of Section 7 (-2) 5289 | -7/Data Miner | Acquired the access code to Warlord's prototype stash 5301 | -7/Data Miner | Received God Mode back door access code from Data Miner 5331 | -7/Data Miner | Entered Proximity Caves 5333 | -6/Proximity Caves | Attracted the attention of an 0b10 checkpoint 5382 | -6/Proximity Caves | Spotted B-75 Beast 5386 | -6/Proximity Caves | Destroyed B-75 Beast 5452 | -6/Proximity Caves | X0-1V1 revealed exit location to -6/Factory 5678 | -6/Proximity Caves | Entered Factory 5678 | -6/Factory | Evolved 2 slots: Propulsion x1, Weapon x1 5679 | -6/Factory | Identified exit to Extension 5680 | -6/Factory | Loaded intel: 82 trap records 5702 | -6/Factory | X0-1V1 sent you to a vault 5798 | -6/Factory | Lost 4 allies 5819 | -6/Factory | X0-1V1 activates XOMVISION 5877 | -6/Factory | Central database locked down 5913 | -6/Factory | Identified exit to Factory 5959 | -6/Factory | Identified exit to Lower Caves 6034 | -6/Factory | Build established: Tank 6079 | -6/Factory | Self-destructed Last Messages --------------- >>Force(Recompile) RECOMPILED[Authchip [Device]] 05991_ ALERT: Suspicious activity at Fabricator F006. Dispatching Investigation squad. 05991_ Dropped Arm. Leg. 05992_ Acquired Authchip [Device]. 05994_ Discarded Wheel+. 05994_ Acquired Arm. Leg. 06011_ Sfc. Transmogrifier converts Fusion Compressor into Cld. Deuterium Engine. 06013_ Dropped Plasma Cutter. 06013_ Acquired Prototype Ballistic Cannon. 06023_ ALERT: Potential suspicious activity detected, Programmers report to Factory Zone 2N. 06066_ Dropped Hvy. Battle Rifle. 06067_ Acquired Phase Cannon. 06072_ Connecting with Fabricator... 06079_ Sfc. Transmogrifier converts Energy Well into Weapon Cycler. Map ----- +----------------------------------------------------+ | ??????????????????????????????????????????? | | ??????????????????????????????????????????? | | ??????????????????????????????????????????? | | ??????????????????????????????????????????? | | ??????????????????????????????????????????? | | ??????????????????????????????????????????? | | ??????????????????????????????????????????? | | ??????????????????????????????????????????? | | ???????? ?? ? ?? ?????????????????????????? | | ?????? ? ? ? #????????????????????????? | | ????# " " " #????????????????????????? | | ????# " " " #????????????????????????? | | ????# " " " #????????????????????????? | | ????# " " " #????????????????????????? | | ????# " " " #????????????????????????? | | ????? " " " #????????????????????????? | | ?????? " " " #????????????????????????? | | ???????# " " " #????????????????????????? | | ???????# " " " #????????????????????????? | | ???????# #????????????????????????? | | ???????# #????????????????????????? | | ???????# #????????????????????????? | | ???????# ########?????????????????? | | ???????# # #?????????????????? | | ????#### "F"" # #?????????????????? | | ????# [ """" /@ "" #?????????????????? | | ????# # T" #?????????????????? | | ????# # "" #?????????????>???? | | ????# ######## ###= #?????????????????? | | ????# ???????# #?########?????????????????? | | ????#???######+###????????????????????????? | | ????????# #????????????????????????? | | ????????# """#????????????????????????? | | ????????# """#????????????????????????? | | ????????# """#????????????????????????? | | ????????# #??????????????????? ??? | | ????????# """#??????????????????? ??? | | ????????# """#??????????????????? ??? | | ????????# """#??????????????????# #?? | | ????????# #?????##########???# ?? | | ????????#+#+######?????# ? ???# ?? | | ????????# #?????# ???# ?? | | ????????+ #?????# ??# #?? | | ????????# #?????# ?# #?? | | ????????### #?????#! """ """ # #?! | | ??????????# #?????# """ """ + #?? | | ??????????# #?????# """ """ # #?? | | ??????????# #?????# # #?? | | ??####????# +?????# """ """ # #?? | | ?? ???# #?????# """ """ # #?? | +----------------------------------------------------+ Best States ------------- Heat Dissipation 52 Coolant Potential 65 Energy Generation 34 Energy Capacity 2265 Matter Stores 900 Matter Capacity 900 Sight Range 24 Terrain Scan Range 14 Terrain Scan Density 10 ECM Strength 3 Armor Coverage 300 Evasion (%) 55 Targeting Accuracy 10 Recoil Reduction 3 Salvage Targeting 5 Authchip Count 1 Item Schematics ----------------- Combat Drone Bay | -7/Data Miner | Free Lgt. Regenerative Plating | -7/Data Miner | Free Biomechanical Wings | -7/Data Miner | Free Exp. Utility Shielding | -7/Data Miner | Free Ion Burst Cannon | -7/Data Miner | Free Antigrav System | -7/Data Miner | Free Imp. Recalibrator | -7/Data Miner | Free Wave Gun | -7/Data Miner | Free Jamming Amplifier | -7/Data Miner | Free Adv. Plasma Cannon | -7/Data Miner | Free Adv. Thermal Shield | -7/Data Miner | Free Hyp. Mass Driver | -7/Data Miner | Free Hacking Suite | -6/Factory | Scanalyzed Imp. Hacking Suite | -6/Factory | Scanalyzed Imp. Light Armor Plating | -6/Factory | Scanalyzed Seismic Detector | -6/Factory | Scanalyzed Robot Schematics ------------------ B-48 Gladiator | -7/Data Miner | Free L-41 Fighter | -7/Data Miner | Free H-55 Commando | -7/Data Miner | Free G-47 Trooper | -7/Data Miner | Free Fabricated ------------ Nothing Repaired ---------- Beam Rifle | 62% | -8/Materials Studied --------- Plasma Rifle | -6/Factory | Hacked Arm. Wheel | -6/Factory | Hacked Wheel | -6/Factory | Hacked Alien Tech Used ----------------- None Achievements -------------- None Challenges ------------ None Game ------ Seed ShadingMobileBasin Manual? 0 Play Time 00:44:56 Cumulative 483.3 hours Start 2026.06.23 @ 22:11:20 End 2026.08.22 @ 10:12:36 Sessions 4 Manual Loads 0 Difficulty Rogue Special Mode None Game No. 175 Rogue 175 Adventurer 0 Explorer 0 Win Type - Total 18 Types 4/0/8/0/1/0/2/1/1/1 Lore% 83 Gallery% 84 Achievement% 76 Wizard Run 0 Options --------- Layout 1 ASCII 0 Keyboard 0 Movement Arrows Keybinds 0 Fullscreen 1 Font 24/Smallcaps Map View 50x35 Zoom Use 0% Tactical HUD 1 Map Filters NONE Filters NONE Steam 1 RUN: a8fc3f89-e2dc-46af-b9b6-c876b6595d73